{"text_format":"3","workbook":"xlsx","n_sheets":2,"sheets":["Ausgaben","Kategorie"],"not_rendered":{"defined_names":5},"read":"whole","date_system":"1900"}

{"sheet":"Ausgaben","index":0,"n_rows":25,"n_cols":7,"rows_kept":25,"merged":[[0,1,0,5],[1,1,1,6]]}
[null,"AUSGABENBUDGET",{"$nulls":4},{"$f":"TODAY()","v":"2018-06-18"}]
[null,"Firmenname"]
[null,"Ausgabe","Kategorie","Budget","Tatsächlich","Differenz (€)","Differenz (%)"]
[null,"Werbung","Betriebskosten",null,null,{"$f":"IFERROR(SUM(Ausgaben[Budget]-Ausgaben[Tatsächlich]), \"\")","v":0},{"$f":"IFERROR(SUM(Ausgaben[Differenz (€)]/Ausgaben[Budget]),\"\")","v":""}]
[null,"Verbindlichkeiten","Betriebskosten",null,null,{"$f":"IFERROR(SUM(Ausgaben[Budget]-Ausgaben[Tatsächlich]), \"\")","v":0},{"$f":"IFERROR(SUM(Ausgaben[Differenz (€)]/Ausgaben[Budget]),\"\")","v":""}]
[null,"Vorteile","Betriebskosten",null,null,{"$f":"IFERROR(SUM(Ausgaben[Budget]-Ausgaben[Tatsächlich]), \"\")","v":0},{"$f":"IFERROR(SUM(Ausgaben[Differenz (€)]/Ausgaben[Budget]),\"\")","v":""}]
[null,"Betriebsmittel","Betriebskosten",null,null,{"$f":"IFERROR(SUM(Ausgaben[Budget]-Ausgaben[Tatsächlich]), \"\")","v":0},{"$f":"IFERROR(SUM(Ausgaben[Differenz (€)]/Ausgaben[Budget]),\"\")","v":""}]
[null,"Porto","Betriebskosten",null,null,{"$f":"IFERROR(SUM(Ausgaben[Budget]-Ausgaben[Tatsächlich]), \"\")","v":0},{"$f":"IFERROR(SUM(Ausgaben[Differenz (€)]/Ausgaben[Budget]),\"\")","v":""}]
[null,"Miete oder Hypothek","Betriebskosten",null,null,{"$f":"IFERROR(SUM(Ausgaben[Budget]-Ausgaben[Tatsächlich]), \"\")","v":0},{"$f":"IFERROR(SUM(Ausgaben[Differenz (€)]/Ausgaben[Budget]),\"\")","v":""}]
[null,"Vertriebsausgaben","Betriebskosten",null,null,{"$f":"IFERROR(SUM(Ausgaben[Budget]-Ausgaben[Tatsächlich]), \"\")","v":0},{"$f":"IFERROR(SUM(Ausgaben[Differenz (€)]/Ausgaben[Budget]),\"\")","v":""}]
[null,"Steuern","Betriebskosten",null,null,{"$f":"IFERROR(SUM(Ausgaben[Budget]-Ausgaben[Tatsächlich]), \"\")","v":0},{"$f":"IFERROR(SUM(Ausgaben[Differenz (€)]/Ausgaben[Budget]),\"\")","v":""}]
[null,"Nebenkosten","Betriebskosten",null,null,{"$f":"IFERROR(SUM(Ausgaben[Budget]-Ausgaben[Tatsächlich]), \"\")","v":0},{"$f":"IFERROR(SUM(Ausgaben[Differenz (€)]/Ausgaben[Budget]),\"\")","v":""}]
[null,"Sonstige","Betriebskosten",null,null,{"$f":"IFERROR(SUM(Ausgaben[Budget]-Ausgaben[Tatsächlich]), \"\")","v":0},{"$f":"IFERROR(SUM(Ausgaben[Differenz (€)]/Ausgaben[Budget]),\"\")","v":""}]
[null,"Versicherungen","Betriebskosten",null,null,{"$f":"IFERROR(SUM(Ausgaben[Budget]-Ausgaben[Tatsächlich]), \"\")","v":0},{"$f":"IFERROR(SUM(Ausgaben[Differenz (€)]/Ausgaben[Budget]),\"\")","v":""}]
[null,"Zinsen","Betriebskosten",null,null,{"$f":"IFERROR(SUM(Ausgaben[Budget]-Ausgaben[Tatsächlich]), \"\")","v":0},{"$f":"IFERROR(SUM(Ausgaben[Differenz (€)]/Ausgaben[Budget]),\"\")","v":""}]
[null,"Telefon","Betriebskosten",null,null,{"$f":"IFERROR(SUM(Ausgaben[Budget]-Ausgaben[Tatsächlich]), \"\")","v":0},{"$f":"IFERROR(SUM(Ausgaben[Differenz (€)]/Ausgaben[Budget]),\"\")","v":""}]
[null,"Wartung und Reparaturen","Betriebskosten",null,null,{"$f":"IFERROR(SUM(Ausgaben[Budget]-Ausgaben[Tatsächlich]), \"\")","v":0},{"$f":"IFERROR(SUM(Ausgaben[Differenz (€)]/Ausgaben[Budget]),\"\")","v":""}]
[null,"Rechtskosten","Betriebskosten",null,null,{"$f":"IFERROR(SUM(Ausgaben[Budget]-Ausgaben[Tatsächlich]), \"\")","v":0},{"$f":"IFERROR(SUM(Ausgaben[Differenz (€)]/Ausgaben[Budget]),\"\")","v":""}]
[null,"Abschreibung","Betriebskosten",null,null,{"$f":"IFERROR(SUM(Ausgaben[Budget]-Ausgaben[Tatsächlich]), \"\")","v":0},{"$f":"IFERROR(SUM(Ausgaben[Differenz (€)]/Ausgaben[Budget]),\"\")","v":""}]
[null,"Versand","Betriebskosten",null,null,{"$f":"IFERROR(SUM(Ausgaben[Budget]-Ausgaben[Tatsächlich]), \"\")","v":0},{"$f":"IFERROR(SUM(Ausgaben[Differenz (€)]/Ausgaben[Budget]),\"\")","v":""}]
[null,"Lagerkosten","Betriebskosten",null,null,{"$f":"IFERROR(SUM(Ausgaben[Budget]-Ausgaben[Tatsächlich]), \"\")","v":0},{"$f":"IFERROR(SUM(Ausgaben[Differenz (€)]/Ausgaben[Budget]),\"\")","v":""}]
[null,"Lager","Privat",null,null,{"$f":"IFERROR(SUM(Ausgaben[Budget]-Ausgaben[Tatsächlich]), \"\")","v":0},{"$f":"IFERROR(SUM(Ausgaben[Differenz (€)]/Ausgaben[Budget]),\"\")","v":""}]
[null,"Verkäufer","Privat",null,null,{"$f":"IFERROR(SUM(Ausgaben[Budget]-Ausgaben[Tatsächlich]), \"\")","v":0},{"$f":"IFERROR(SUM(Ausgaben[Differenz (€)]/Ausgaben[Budget]),\"\")","v":""}]
[null,"Sonstiges","Privat",null,null,{"$f":"IFERROR(SUM(Ausgaben[Budget]-Ausgaben[Tatsächlich]), \"\")","v":0},{"$f":"IFERROR(SUM(Ausgaben[Differenz (€)]/Ausgaben[Budget]),\"\")","v":""}]
[null,"Ausgaben gesamt",null,{"$f":"IFERROR(SUM(Ausgaben[Budget]), \"\")","v":0},{"$f":"IFERROR(SUM(Ausgaben[Tatsächlich]), \"\")","v":0},{"$f":"IFERROR(SUM(Ausgaben[Differenz (€)]), \"\")","v":0},{"$f":"IFERROR(SUM(Ausgaben[[#Totals],[Differenz (€)]]/Ausgaben[[#Totals],[Budget]]),\"\")","v":""}]

{"sheet":"Kategorie","index":1,"n_rows":4,"n_cols":2,"rows_kept":4}
[null,"Kategoriesuche"]
[null,"Kategorie"]
[null,"Betriebskosten"]
[null,"Privat"]